[Event "RUS-chT Blitz Women 2018"]
[Site "Sochi"]
[Date "2018.10.10"]
[Round "4"]
[White "Vifleemskaia, Svetlana"]
[Black "Kirchei, Viktoriia"]
[Result "1-0"]
[ECO "D30"]
[WhiteElo "2030"]
[BlackElo "2002"]
[Annotator "NA RC"]
[PlyCount "75"]
[EventDate "2018.10.10"]
[EventType "swiss"]
[EventCountry "RUS"]
[SourceTitle "playchess.com"]
[Source "ChessBase"]
[SourceQuality "1"]
[TimeControl "180+2"]

1. d4 {[%emt 0:00:00]} d5 {[%emt 0:00:00]} 2. c4 {[%emt 0:00:00]} e6 {[%emt 0:00:00]} 3. Nf3 {[%emt 0:00:09]} c6 {[%emt 0:00:00]} 4. Qc2 {[%emt 0:00:01]} dxc4 {[%emt 0:00:00]} 5. Qxc4 b5 6. Qc2 {[%emt 0:00:04]} Bb7 {[%emt 0:00:02]} 7. e4 {[%emt 0:00:02]} a6 {[%emt 0:00:02]} 8. Bd3 {[%emt 0:00:17]} Nd7 {[%emt 0:00:01]} 9. O-O {[%emt 0:00:06]} Ngf6 {[%emt 0:00:05]} 10. a4 {[%emt 0:00:06]} b4 {[%emt 0:00:15]} 11. Bg5 {[%emt 0:00:04]} Be7 {[%emt 0:00:01]} 12. Nbd2 {[%emt 0:00:10]} Rc8 {[%emt 0:00:10]} 13. Nb3 {[%emt 0:00:12]} c5 {[%emt 0:00:10]} 14. dxc5 {[%emt 0:00:03]} Nxc5 {[%emt 0:00:04]} 15. Nxc5 {[%emt 0:00:02]} Rxc5 {[%emt 0:00:06]} 16. Qe2 {[%emt 0:00:04]} O-O {[%emt 0:00:27]} 17. Rac1 {[%emt 0:00:15]} Nd7 {[%emt 0:00:29]} 18. Bxe7 {[%emt 0:00:20]} Qxe7 {[%emt 0:00:02]} 19. Bxa6 {[%emt 0:00:22]} Bxa6 {[%emt 0:00:30]} 20. Qxa6 {[%emt 0:00:01]} Rxc1 {[%emt 0:00:32]} 21. Rxc1 {[%emt 0:00:01]} Nc5 {[%emt 0:00:00]} 22. Qc6 {[%emt 0:00:19]} Nd3 {[%emt 0:00:01]} 23. Rc2 {[%emt 0:00:06]} Rd8 {[%emt 0:00:05]} 24. g3 {[%emt 0:00:11]} Qf6 {[%emt 0:00:03]} 25. Kg2 {[%emt 0:00:12]} b3 {[%emt 0:00:09]} 26. Rc3 {[%emt 0:00:04]} Nxb2 {[%emt 0:00:03]} 27. Rxb3 {[%emt 0:00:03]} Nd3 {[%emt 0:00:01]} 28. Qc3 {[%emt 0:00:10]} e5 {[%emt 0:00:07]} 29. Qc4 {[%emt 0:00:09]} h6 {[%emt 0:00:06]} 30. Rxd3 {[%emt 0:00:02]} Ra8 {[%emt 0:00:01]} 31. Ra3 {[%emt 0:00:06]} g5 {[%emt 0:00:01]} 32. a5 {[%emt 0:00:02]} g4 {[%emt 0:00:01]} 33. Nh4 {[%emt 0:00:01]} Qg5 {[%emt 0:00:03]} 34. a6 {[%emt 0:00:03]} Qd2 {[%emt 0:00:02]} 35. a7 {[%emt 0:00:05]} Kg7 {[%emt 0:00:07]} 36. Qd5 {[%emt 0:00:04]} Qb4 {[%emt 0:00:06]} 37. Qxa8 {[%emt 0:00:04]} Qxa3 {[%emt 0:00:01]} 38. Qb7 {[%emt 0:00:02]} 1-0

[Event "RUS-chT Blitz Women 2018"]
[Site "Sochi"]
[Date "2018.10.10"]
[Round "4"]
[White "Mamontova, Anastasia"]
[Black "Ershova, Margarita"]
[Result "1-0"]
[ECO "A41"]
[WhiteElo "2009"]
[BlackElo "1511"]
[Annotator "NA RC"]
[PlyCount "94"]
[EventDate "2018.10.10"]
[EventType "swiss"]
[EventCountry "RUS"]
[SourceTitle "playchess.com"]
[Source "ChessBase"]
[SourceQuality "1"]
[TimeControl "180+2"]

1. d4 {[%emt 0:00:01]} d6 {[%emt 0:00:00]} 2. c4 {[%emt 0:00:01]} e5 {[%emt 0:00:00]} 3. d5 {[%emt 0:00:05]} f5 {[%emt 0:00:01]} 4. Nc3 {[%emt 0:00:30]} Nf6 {[%emt 0:00:03]} 5. Bg5 {[%emt 0:00:02]} Be7 {[%emt 0:00:06]} 6. g3 {[%emt 0:00:09]} h6 {[%emt 0:00:02]} 7. Bd2 {[%emt 0:00:03]} b6 {[%emt 0:00:07]} 8. Qc2 {[%emt 0:00:19]} O-O {[%emt 0:00:31]} 9. Nf3 {[%emt 0:00:12]} Nh7 {[%emt 0:00:19]} 10. Bh3 {[%emt 0:00:55]} Ng5 {[%emt 0:00:10]} 11. Nxg5 {[%emt 0:00:07]} Bxg5 {[%emt 0:00:01]} 12. O-O-O {[%emt 0:00:11]} Bxd2+ {[%emt 0:00:24]} 13. Rxd2 {[%emt 0:00:05]} a5 {[%emt 0:00:04]} 14. Rg1 {[%emt 0:00:13]} Na6 {[%emt 0:00:10]} 15. e4 {[%emt 0:00:02]} Nb4 {[%emt 0:00:11]} 16. Qb3 {[%emt 0:00:13]} fxe4 {[%emt 0:00:08]} 17. Bxc8 {[%emt 0:00:04]} Qxc8 {[%emt 0:00:02]} 18. Nxe4 {[%emt 0:00:02]} Qf5 {[%emt 0:00:07]} 19. Re1 {[%emt 0:00:06]} Na6 {[%emt 0:00:08]} 20. Qe3 {[%emt 0:00:03]} Nc5 {[%emt 0:00:05]} 21. Nxc5 {[%emt 0:00:03]} bxc5 {[%emt 0:00:02]} 22. Rf1 {[%emt 0:00:06]} Rab8 {[%emt 0:00:03]} 23. Qc3 {[%emt 0:00:02]} a4 {[%emt 0:00:06]} 24. a3 {[%emt 0:00:04]} Rb3 {[%emt 0:00:04]} 25. Qa5 {[%emt 0:00:01]} Qh3 {[%emt 0:00:10]} 26. Rdd1 {[%emt 0:00:08]} Rfb8 {[%emt 0:00:08]} 27. Qxc7 {[%emt 0:00:04]} Rxb2 {[%emt 0:00:04]} 28. Qxd6 {[%emt 0:00:01]} Rb1+ {[%emt 0:00:10]} 29. Kd2 {[%emt 0:00:00]} R8b2+ {[%emt 0:00:02]} 30. Ke3 {[%emt 0:00:01]} Rb3+ {[%emt 0:00:03]} 31. Ke4 {[%emt 0:00:02]} Qg4+ {[%emt 0:00:05]} 32. Kxe5 Rxd1 {[%emt 0:00:09]} 33. Rxd1 {[%emt 0:00:08]} Qxd1 {[%emt 0:00:03]} 34. Qd8+ {[%emt 0:00:02]} Kh7 {[%emt 0:00:01]} 35. Kd6 {[%emt 0:00:01]} Rxa3 {[%emt 0:00:06]} 36. Kxc5 {[%emt 0:00:02]} Qf3 {[%emt 0:00:04]} 37. Qd7 {[%emt 0:00:03]} Qxf2+ {[%emt 0:00:02]} 38. Kc6 {[%emt 0:00:00]} Rb3 {[%emt 0:00:04]} 39. c5 {[%emt 0:00:01]} Rc3 {[%emt 0:00:05]} 40. Kb7 {[%emt 0:00:04]} Qxc5 {[%emt 0:00:02]} 41. Qf5+ {[%emt 0:00:01]} Kg8 {[%emt 0:00:05]} 42. Qe6+ {[%emt 0:00:00]} Kf8 {[%emt 0:00:03]} 43. Qf5+ {[%emt 0:00:01]} Ke8 {[%emt 0:00:06]} 44. Qg6+ {[%emt 0:00:02]} Kd8 {[%emt 0:00:02]} 45. Qxg7 {[%emt 0:00:02]} Qb5+ {[%emt 0:00:02]} 46. Ka7 {[%emt 0:00:02]} Rc7+ {[%emt 0:00:02]} 47. Qxc7+ {[%emt 0:00:02]} Kxc7 {[%emt 0:00:02]} 1-0

[Event "RUS-chT Blitz Women 2018"]
[Site "Sochi"]
[Date "2018.10.10"]
[Round "4"]
[White "Bondareva, Daria"]
[Black "Shendrik, Zhanna"]
[Result "1-0"]
[ECO "B21"]
[WhiteElo "1979"]
[BlackElo "1934"]
[Annotator "NA RC"]
[PlyCount "111"]
[EventDate "2018.10.10"]
[EventType "swiss"]
[EventCountry "RUS"]
[SourceTitle "playchess.com"]
[Source "ChessBase"]
[SourceQuality "1"]
[TimeControl "180+2"]

1. e4 {[%emt 0:00:00]} c5 {[%emt 0:00:00]} 2. d4 {[%emt 0:00:00]} cxd4 {[%emt 0:00:02]} 3. c3 {[%emt 0:00:00]} e6 {[%emt 0:00:01]} 4. cxd4 {[%emt 0:00:03]} Nf6 {[%emt 0:00:01]} 5. Nc3 {[%emt 0:00:01]} a6 {[%emt 0:00:05]} 6. Be2 {[%emt 0:00:27]} b5 {[%emt 0:00:09]} 7. Bf3 {[%emt 0:00:02]} Bb7 {[%emt 0:00:01]} 8. e5 {[%emt 0:00:05]} Nd5 {[%emt 0:00:06]} 9. Nxd5 {[%emt 0:00:02]} exd5 {[%emt 0:00:10]} 10. Ne2 {[%emt 0:00:09]} d6 {[%emt 0:00:16]} 11. exd6 {[%emt 0:00:29]} Bxd6 {[%emt 0:00:04]} 12. O-O {[%emt 0:00:02]} O-O {[%emt 0:00:03]} 13. Kh1 {[%emt 0:00:23]} Nd7 {[%emt 0:00:03]} 14. Nc3 {[%emt 0:00:21]} Nb6 {[%emt 0:00:04]} 15. Qb3 {[%emt 0:00:02]} Qh4 {[%emt 0:00:11]} 16. g3 {[%emt 0:00:43]} Qxd4 {[%emt 0:00:37]} 17. Bg2 {[%emt 0:00:01]} Nc4 {[%emt 0:00:24]} 18. a4 {[%emt 0:00:14]} b4 {[%emt 0:00:13]} 19. Ne2 {[%emt 0:00:01]} Qg4 {[%emt 0:00:05]} 20. Nf4 {[%emt 0:00:13]} Bxf4 {[%emt 0:00:19]} 21. Bxf4 a5 22. Rad1 {[%emt 0:00:12]} Rfd8 {[%emt 0:00:03]} 23. Rd4 {[%emt 0:00:05]} Qe2 {[%emt 0:00:10]} 24. Rfd1 {[%emt 0:00:02]} Qxb2 {[%emt 0:00:05]} 25. Qd3 {[%emt 0:00:05]} Qc3 {[%emt 0:00:16]} 26. Qxc3 {[%emt 0:00:02]} bxc3 {[%emt 0:00:01]} 27. Bc1 {[%emt 0:00:04]} Bc6 {[%emt 0:00:07]} 28. Bxd5 {[%emt 0:00:02]} Bxd5+ {[%emt 0:00:02]} 29. Rxd5 {[%emt 0:00:00]} Rxd5 {[%emt 0:00:05]} 30. Rxd5 {[%emt 0:00:01]} Rb8 {[%emt 0:00:08]} 31. Rc5 {[%emt 0:00:03]} Nb6 {[%emt 0:00:05]} 32. Rxa5 {[%emt 0:00:03]} h6 {[%emt 0:00:04]} 33. Kg2 {[%emt 0:00:01]} Nc4 {[%emt 0:00:02]} 34. Rc5 {[%emt 0:00:01]} Nb6 {[%emt 0:00:02]} 35. a5 {[%emt 0:00:00]} Na4 {[%emt 0:00:04]} 36. Rc4 {[%emt 0:00:01]} Nb2 {[%emt 0:00:00]} 37. Rxc3 {[%emt 0:00:01]} Ra8 {[%emt 0:00:00]} 38. Bxb2 {[%emt 0:00:01]} Rxa5 {[%emt 0:00:00]} 39. Rc8+ {[%emt 0:00:03]} Kh7 {[%emt 0:00:01]} 40. Rc7 {[%emt 0:00:01]} Kg6 {[%emt 0:00:01]} 41. Bc3 {[%emt 0:00:03]} Rb5 {[%emt 0:00:01]} 42. Rc6+ {[%emt 0:00:04]} Kh7 {[%emt 0:00:03]} 43. Bd4 {[%emt 0:00:01]} Rd5 {[%emt 0:00:02]} 44. Be3 {[%emt 0:00:01]} Rb5 {[%emt 0:00:01]} 45. h4 {[%emt 0:00:01]} Rd5 {[%emt 0:00:00]} 46. g4 {[%emt 0:00:02]} Rd7 {[%emt 0:00:01]} 47. Kg3 {[%emt 0:00:03]} Rd5 {[%emt 0:00:01]} 48. g5 {[%emt 0:00:02]} hxg5 {[%emt 0:00:02]} 49. hxg5 {[%emt 0:00:01]} Rb5 {[%emt 0:00:03]} 50. f4 {[%emt 0:00:01]} Rb3 {[%emt 0:00:01]} 51. Kf3 {[%emt 0:00:01]} Rb4 {[%emt 0:00:04]} 52. f5 {[%emt 0:00:01]} Rb5 {[%emt 0:00:04]} 53. Kg4 {[%emt 0:00:01]} Rb4+ {[%emt 0:00:01]} 54. Bf4 {[%emt 0:00:02]} Ra4 {[%emt 0:00:08]} 55. g6+ {[%emt 0:00:01]} fxg6 {[%emt 0:00:05]} 56. fxg6+ {[%emt 0:00:01]} 1-0

[Event "RUS-chT Blitz Women 2018"]
[Site "Sochi"]
[Date "2018.10.10"]
[Round "4"]
[White "Girshgorn, Maria"]
[Black "Zavivaeva, Evelina"]
[Result "1-0"]
[ECO "A04"]
[WhiteElo "1949"]
[BlackElo "1323"]
[Annotator "NA RC"]
[PlyCount "107"]
[EventDate "2018.10.10"]
[EventType "swiss"]
[EventCountry "RUS"]
[SourceTitle "playchess.com"]
[Source "ChessBase"]
[SourceQuality "1"]
[TimeControl "180+2"]

1. Nf3 {[%emt 0:00:00]} Nc6 {[%emt 0:00:00]} 2. g3 {[%emt 0:00:01]} e5 {[%emt 0:00:01]} 3. Bg2 {[%emt 0:00:01]} d5 {[%emt 0:00:01]} 4. d3 {[%emt 0:00:01]} Nf6 {[%emt 0:00:01]} 5. O-O {[%emt 0:00:01]} Bf5 {[%emt 0:00:05]} 6. Nbd2 {[%emt 0:00:16]} Bd6 {[%emt 0:00:09]} 7. c4 {[%emt 0:00:04]} e4 {[%emt 0:00:10]} 8. Nh4 {[%emt 0:00:04]} Be6 {[%emt 0:00:22]} 9. dxe4 {[%emt 0:00:05]} dxe4 {[%emt 0:00:35]} 10. Nxe4 {[%emt 0:00:08]} Nxe4 {[%emt 0:00:16]} 11. Bxe4 {[%emt 0:00:01]} Bxc4 {[%emt 0:00:09]} 12. Nf5 {[%emt 0:00:06]} O-O {[%emt 0:01:07]} 13. Qc2 {[%emt 0:00:02]} Be6 {[%emt 0:00:25]} 14. Nxd6 {[%emt 0:00:03]} Qxd6 {[%emt 0:00:04]} 15. Bxh7+ {[%emt 0:00:02]} Kh8 {[%emt 0:00:00]} 16. Bf4 {[%emt 0:00:08]} Qd7 {[%emt 0:00:02]} 17. Rfd1 {[%emt 0:00:09]} Qe7 {[%emt 0:00:01]} 18. Be4 {[%emt 0:00:05]} Bd7 19. Bxc7 {[%emt 0:00:13]} Rac8 {[%emt 0:00:07]} 20. Bd6 {[%emt 0:00:03]} Qe8 {[%emt 0:00:02]} 21. Bxf8 {[%emt 0:00:04]} Nb4 {[%emt 0:00:02]} 22. Qd2 {[%emt 0:00:12]} Qxe4 {[%emt 0:00:02]} 23. Qxd7 {[%emt 0:00:02]} Rxf8 {[%emt 0:00:02]} 24. Qd4 {[%emt 0:00:11]} Qxd4 {[%emt 0:00:02]} 25. Rxd4 {[%emt 0:00:01]} Nc2 {[%emt 0:00:01]} 26. Rh4+ {[%emt 0:00:00]} Kg8 {[%emt 0:00:02]} 27. Rc1 {[%emt 0:00:02]} Rc8 {[%emt 0:00:02]} 28. Rh5 {[%emt 0:00:24]} g6 {[%emt 0:00:03]} 29. Rd5 {[%emt 0:00:02]} Rc6 {[%emt 0:00:02]} 30. Rd2 {[%emt 0:00:09]} Nb4 {[%emt 0:00:02]} 31. Rxc6 {[%emt 0:00:01]} Nxc6 {[%emt 0:00:02]} 32. Rd7 {[%emt 0:00:02]} a6 {[%emt 0:00:02]} 33. Rxb7 Kg7 34. Rb6 {[%emt 0:00:03]} Nd4 {[%emt 0:00:03]} 35. Kf1 {[%emt 0:00:01]} a5 {[%emt 0:00:02]} 36. Ra6 {[%emt 0:00:03]} Nb5 {[%emt 0:00:03]} 37. Rxa5 {[%emt 0:00:02]} Nc7 {[%emt 0:00:01]} 38. b4 {[%emt 0:00:03]} Ne6 {[%emt 0:00:01]} 39. b5 {[%emt 0:00:02]} Nc5 {[%emt 0:00:01]} 40. b6 {[%emt 0:00:02]} Nb7 {[%emt 0:00:02]} 41. Ra7 {[%emt 0:00:01]} Nc5 {[%emt 0:00:01]} 42. b7 {[%emt 0:00:01]} Nxb7 {[%emt 0:00:01]} 43. Rxb7 {[%emt 0:00:01]} Kf6 {[%emt 0:00:03]} 44. a4 {[%emt 0:00:01]} Ke6 {[%emt 0:00:00]} 45. a5 Kd6 46. a6 {[%emt 0:00:02]} Kc6 {[%emt 0:00:01]} 47. Rb1 {[%emt 0:00:01]} Kc7 {[%emt 0:00:02]} 48. a7 {[%emt 0:00:02]} Kd7 {[%emt 0:00:01]} 49. a8=Q {[%emt 0:00:02]} g5 {[%emt 0:00:00]} 50. Qd5+ {[%emt 0:00:02]} Ke7 {[%emt 0:00:01]} 51. Rb7+ {[%emt 0:00:01]} Kf6 {[%emt 0:00:01]} 52. Rxf7+ {[%emt 0:00:03]} Kg6 {[%emt 0:00:01]} 53. Qe6+ {[%emt 0:00:01]} Kh5 {[%emt 0:00:01]} 54. Rh7# {[%emt 0:00:02]} 1-0

[Event "RUS-chT Blitz Women 2018"]
[Site "Sochi"]
[Date "2018.10.10"]
[Round "4"]
[White "Fairuzova, Zulfiiya"]
[Black "Mukhina, Jana"]
[Result "0-1"]
[ECO "E62"]
[WhiteElo "1847"]
[BlackElo "2072"]
[Annotator "NA RC"]
[PlyCount "72"]
[EventDate "2018.10.10"]
[EventType "swiss"]
[EventCountry "RUS"]
[SourceTitle "playchess.com"]
[Source "ChessBase"]
[SourceQuality "1"]
[TimeControl "180+2"]

1. d4 {[%emt 0:00:00]} Nf6 {[%emt 0:00:00]} 2. Nf3 {[%emt 0:00:00]} g6 {[%emt 0:00:00]} 3. g3 {[%emt 0:00:01]} Bg7 {[%emt 0:00:00]} 4. Bg2 {[%emt 0:00:01]} O-O {[%emt 0:00:00]} 5. O-O d6 6. c4 {[%emt 0:00:03]} Nc6 {[%emt 0:00:00]} 7. Nc3 e5 8. e4 {[%emt 0:00:02]} Bg4 {[%emt 0:00:02]} 9. Be3 {[%emt 0:00:06]} Nd7 {[%emt 0:00:37]} 10. d5 {[%emt 0:00:04]} Nd4 {[%emt 0:00:03]} 11. Bxd4 {[%emt 0:00:20]} exd4 {[%emt 0:00:01]} 12. Ne2 {[%emt 0:00:01]} Bxf3 {[%emt 0:00:06]} 13. Bxf3 Ne5 14. Nxd4 {[%emt 0:00:20]} Nxc4 {[%emt 0:00:02]} 15. b3 {[%emt 0:00:11]} Ne5 {[%emt 0:00:13]} 16. Bg2 {[%emt 0:00:02]} c5 {[%emt 0:00:19]} 17. dxc6 {[%emt 0:00:09]} Nxc6 {[%emt 0:00:02]} 18. Nxc6 {[%emt 0:00:01]} bxc6 {[%emt 0:00:01]} 19. Rc1 {[%emt 0:00:01]} Rc8 {[%emt 0:00:02]} 20. Qd3 {[%emt 0:00:11]} Qe7 {[%emt 0:00:08]} 21. Rc2 {[%emt 0:00:15]} c5 {[%emt 0:00:00]} 22. Rd1 {[%emt 0:00:11]} Bd4 {[%emt 0:00:01]} 23. Re2 {[%emt 0:00:16]} Qc7 {[%emt 0:00:09]} 24. Ree1 {[%emt 0:00:18]} Qa5 {[%emt 0:00:01]} 25. a4 {[%emt 0:00:04]} Rb8 {[%emt 0:00:01]} 26. Rb1 {[%emt 0:00:08]} Rb4 {[%emt 0:00:09]} 27. Red1 {[%emt 0:00:01]} Rfb8 {[%emt 0:00:01]} 28. Qc2 {[%emt 0:00:21]} Qb6 {[%emt 0:00:03]} 29. Bf1 {[%emt 0:00:27]} Rxb3 {[%emt 0:00:09]} 30. Rxb3 {[%emt 0:00:01]} Qxb3 {[%emt 0:00:00]} 31. Qxb3 {[%emt 0:00:04]} Rxb3 {[%emt 0:00:01]} 32. Bc4 {[%emt 0:00:01]} Rb2 {[%emt 0:00:02]} 33. Rf1 {[%emt 0:00:04]} Rb4 {[%emt 0:00:03]} 34. Bb5 {[%emt 0:00:02]} a6 {[%emt 0:00:02]} 35. Bxa6 {[%emt 0:00:01]} Rxa4 36. Rc1 {[%emt 0:00:04]} Rxa6 {[%emt 0:00:02]} 0-1

[Event "RUS-chT Blitz Women 2018"]
[Site "Sochi"]
[Date "2018.10.10"]
[Round "4"]
[White "Zavivaeva, Emilia"]
[Black "Vyrtosu, Natalia"]
[Result "0-1"]
[ECO "B13"]
[WhiteElo "1633"]
[BlackElo "1894"]
[Annotator "NA"]
[PlyCount "66"]
[EventDate "2018.10.10"]
[EventType "swiss"]
[EventCountry "RUS"]
[SourceTitle "playchess.com"]
[Source "ChessBase"]
[SourceQuality "1"]
[TimeControl "180+2"]

1. e4 {[%emt 0:00:01]} c6 {[%emt 0:00:00]} 2. d4 {[%emt 0:00:01]} d5 {[%emt 0:00:00]} 3. exd5 {[%emt 0:00:02]} cxd5 {[%emt 0:00:00]} 4. Bd3 {[%emt 0:00:01]} Nc6 {[%emt 0:00:01]} 5. c3 {[%emt 0:00:01]} Nf6 {[%emt 0:00:01]} 6. Bf4 {[%emt 0:00:01]} g6 {[%emt 0:00:01]} 7. Nd2 {[%emt 0:00:01]} Bf5 {[%emt 0:00:01]} 8. Bxf5 {[%emt 0:00:09]} gxf5 {[%emt 0:00:01]} 9. Ngf3 {[%emt 0:00:02]} e6 {[%emt 0:00:02]} 10. Ne5 {[%emt 0:00:08]} Rg8 {[%emt 0:00:10]} 11. Qa4 {[%emt 0:00:48]} Qb6 {[%emt 0:00:20]} 12. Nb3 {[%emt 0:01:08]} Nh5 {[%emt 0:00:32]} 13. g3 {[%emt 0:00:30]} Nxf4 {[%emt 0:00:24]} 14. gxf4 {[%emt 0:00:01]} f6 {[%emt 0:00:01]} 15. Nxc6 {[%emt 0:00:11]} bxc6 {[%emt 0:00:01]} 16. O-O-O {[%emt 0:00:05]} Bd6 {[%emt 0:00:21]} 17. Qa5 {[%emt 0:00:03]} Bxf4+ {[%emt 0:00:02]} 18. Kb1 {[%emt 0:00:01]} O-O-O {[%emt 0:00:26]} 19. Rhe1 {[%emt 0:00:08]} e5 {[%emt 0:00:08]} 20. dxe5 {[%emt 0:00:03]} fxe5 {[%emt 0:00:01]} 21. h4 {[%emt 0:00:10]} Rg2 {[%emt 0:00:16]} 22. Rf1 {[%emt 0:00:01]} Qxa5 23. Nxa5 {[%emt 0:00:01]} Kc7 {[%emt 0:00:15]} 24. c4 {[%emt 0:00:05]} d4 {[%emt 0:00:02]} 25. c5 {[%emt 0:00:02]} e4 {[%emt 0:00:06]} 26. Nc4 {[%emt 0:00:02]} d3 {[%emt 0:00:01]} 27. Rde1 {[%emt 0:00:05]} Rh2 {[%emt 0:00:07]} 28. Rd1 {[%emt 0:00:02]} Rxh4 {[%emt 0:00:01]} 29. f3 {[%emt 0:00:02]} e3 {[%emt 0:00:02]} 30. Rfe1 {[%emt 0:00:01]} e2 {[%emt 0:00:04]} 31. Rxd3 {[%emt 0:00:02]} Rxd3 {[%emt 0:00:02]} 32. Rxe2 {[%emt 0:00:01]} Rh2 {[%emt 0:00:09]} 33. Re8 {[%emt 0:00:02]} Rd1# {[%emt 0:00:02]} 0-1

[Event "RUS-chT Blitz Women 2018"]
[Site "Sochi"]
[Date "2018.10.10"]
[Round "5"]
[White "Girya, Olga"]
[Black "Dordzhieva, Dinara"]
[Result "1-0"]
[ECO "D45"]
[WhiteElo "2479"]
[BlackElo "2340"]
[Annotator "RC"]
[PlyCount "89"]
[EventDate "2018.10.10"]
[EventType "swiss"]
[EventCountry "RUS"]
[SourceTitle "playchess.com"]
[Source "ChessBase"]
[SourceQuality "1"]
[TimeControl "180+2"]

1. d4 {[%emt 0:00:00]} d5 {[%emt 0:00:00]} 2. c4 {[%emt 0:00:00]} e6 {[%emt 0:00:00]} 3. Nc3 Nf6 4. Nf3 {[%emt 0:00:02]} c6 {[%emt 0:00:01]} 5. e3 {[%emt 0:00:02]} Nbd7 {[%emt 0:00:07]} 6. Qc2 {[%emt 0:00:01]} Bd6 {[%emt 0:00:09]} 7. b3 {[%emt 0:00:01]} O-O {[%emt 0:00:08]} 8. Bb2 {[%emt 0:00:02]} b6 {[%emt 0:00:03]} 9. Bd3 {[%emt 0:00:01]} c5 {[%emt 0:00:09]} 10. cxd5 {[%emt 0:00:11]} exd5 {[%emt 0:00:01]} 11. O-O {[%emt 0:00:02]} Bb7 {[%emt 0:00:02]} 12. Rad1 {[%emt 0:00:06]} Rc8 {[%emt 0:00:01]} 13. Qb1 {[%emt 0:00:03]} Re8 {[%emt 0:00:19]} 14. Bf5 {[%emt 0:00:01]} Rb8 {[%emt 0:00:18]} 15. Rfe1 {[%emt 0:00:15]} a6 {[%emt 0:00:02]} 16. Rc1 {[%emt 0:00:10]} Bf8 {[%emt 0:00:04]} 17. Red1 {[%emt 0:00:02]} Qe7 {[%emt 0:00:28]} 18. Na4 {[%emt 0:00:17]} g6 {[%emt 0:00:07]} 19. Bh3 {[%emt 0:00:06]} Rbd8 {[%emt 0:00:52]} 20. Ba3 {[%emt 0:00:15]} Qe4 {[%emt 0:00:06]} 21. dxc5 {[%emt 0:00:12]} Qxb1 {[%emt 0:00:25]} 22. Rxb1 {[%emt 0:00:02]} bxc5 {[%emt 0:00:00]} 23. Rbc1 {[%emt 0:00:04]} c4 {[%emt 0:00:06]} 24. Bxf8 Nxf8 {[%emt 0:00:01]} 25. Nd4 {[%emt 0:00:19]} cxb3 {[%emt 0:00:07]} 26. axb3 {[%emt 0:00:02]} Bc8 {[%emt 0:00:03]} 27. Nc6 {[%emt 0:00:16]} Bxh3 {[%emt 0:00:04]} 28. Nxd8 {[%emt 0:00:01]} Bg4 {[%emt 0:00:01]} 29. f3 {[%emt 0:00:01]} Rxd8 {[%emt 0:00:02]} 30. fxg4 {[%emt 0:00:01]} Nxg4 {[%emt 0:00:00]} 31. Rd3 {[%emt 0:00:06]} Re8 {[%emt 0:00:01]} 32. h3 {[%emt 0:00:06]} Nxe3 {[%emt 0:00:01]} 33. Re1 {[%emt 0:00:01]} d4 {[%emt 0:00:01]} 34. Rxd4 {[%emt 0:00:02]} f5 {[%emt 0:00:09]} 35. Nb2 {[%emt 0:00:11]} Re5 36. Nd1 {[%emt 0:00:07]} Nc4 {[%emt 0:00:10]} 37. Rxe5 {[%emt 0:00:06]} Nxe5 {[%emt 0:00:02]} 38. Ra4 {[%emt 0:00:05]} Nc6 {[%emt 0:00:02]} 39. Rxa6 {[%emt 0:00:02]} Nd4 {[%emt 0:00:00]} 40. b4 {[%emt 0:00:04]} Nfe6 {[%emt 0:00:01]} 41. b5 {[%emt 0:00:05]} Nc5 {[%emt 0:00:01]} 42. Ra8+ {[%emt 0:00:01]} Kf7 {[%emt 0:00:00]} 43. b6 {[%emt 0:00:03]} Nde6 {[%emt 0:00:05]} 44. Ra7+ {[%emt 0:00:02]} Kf6 {[%emt 0:00:03]} 45. b7 {[%emt 0:00:01]} 1-0